Cogmind - Beta 16 @@@ ROGUE MODE // 2025.11.15 @ 16:24:48 Player: szymekc Result: Destroyed by Striker with Compact Linear Accelerator Performance ------------- Evolutions (7) 3500 Regions Visited (24) 4800 Robots Destroyed (496) 2480 Value Destroyed (26480) 26480 Prototype IDs (86) 1720 Alien Tech Used (4) 800 Bonus (19686) 19686 TOTAL SCORE: 59466 Bonus ------- Triggered High Security 1000 High Alert Combat Kills 11577 Follower Combat Kills 3723 Entered Garrisons 200 Network Hubs Disabled 400 Met Data Miner 300 Met Imprinter 300 Was Imprinted 300 Acquired ECA 300 Built Enhanced Grunts 300 Met R17 at Cetus 500 Found Hidden Lab 3000 Used Core Reset Matrix 3000 Scanned by Researcher 500 Friendly Fire -5714 Cogmind --------- Core Integrity 0/1300 Matter 300/300 Energy 98/100 System Corruption 36% Temperature Cool (0) Movement Core (50) Location -3/Research Parts ------- > --- POWER (3) -------- (None) > --- PROPULSION (6) --- (None) > --- UTILITY (9) ------ Enhanced Optical Array > --- WEAPON (4) ------- (None) > --- INVENTORY (5) ---- Improved Quantum Reactor Advanced Force Field Potential Cannon Peak State ------------ > --- POWER ------------ Light Ion Engine Particle Reactor Micro Antimatter Reactor > --- PROPULSION ------- Zionite Composite Leg II Biometal Leg Enhanced Biometal Leg Centrium Leg Heavy Shield Leg > --- UTILITY ---------- Experimental Heat Sink Advanced Coolant Injector Huge Storage Unit Enhanced Optical Array Active Sensor Suite Medium Regenerative Plating Experimental EM Shield > --- WEAPON ----------- Advanced Plasma Rifle Advanced Plasma Rifle Enhanced Nova Cannon Enhanced Nova Cannon > --- INVENTORY -------- High-capacity Storage Unit Advanced Energy Well Launcher Loader Quantum Capacitor Experimental Weapon Cycler Advanced Transmission Jammer Advanced Reaction Control System Advanced Cloaking Device Experimental Powered Armor Graphene Brace Experimental EM Shield Improved Force Field Hacking Drone Bay Transdimensional Reconstructor Core Reset Matrix EMDS Potential Cannon Compact Tesla Bomb Launcher Gamma Bomb Array Fusion Bomb Launcher [Rating: 187] Favorites ----------- Power Quantum Reactor Engine Light Angular Momentum Engine Power Core Neutrino Core Reactor Quantum Reactor Propulsion Enhanced Flexi-carbon Leg Treads Light Treads Leg Enhanced Flexi-carbon Leg Flight Unit VTOL Module Utility Enhanced Optical Array Device Advanced Cooling System Storage Large Storage Unit Processor Enhanced Optical Array Hackware Hacking Suite Protection Medium Regenerative Plating Weapon Advanced KE Penetrator Energy Gun Spread Laser Energy Cannon Heavy Phase Cannon Ballistic Gun Advanced KE Penetrator Ballistic Cannon Flak Cannon Launcher Compact Tesla Bomb Launcher Special Weapon Multitool Impact Weapon Maul Slashing Weapon Makeshift Sword Piercing Weapon Spear Build | -11 -10 -10 -10 -8 -8 -7 -7 -7 -7 -6 -6 -6 -6 -6 -5 -5 -5 -5 -5 -5 -4 -4 -4 -3 ------- Run | Yrd Mat Min Sub Mat Gar Fac Low Low Dat Pro Fac Low Low Zio Pro Fac Ext Cet Arc Hub Fac Arm Lab Res Slots Evolved 14 | . . . . 4 . 2 . . . . 2 . . . . 2 . . . . 2 . . 2 Power 2 | . . . . . . . . . . . . . . . . 1 . . . . . . . 1 Propulsion 4 | . . . . 2 . 1 . . . . . . . . . . . . . . 1 . . . Utility 7 | . . . . 1 . 1 . . . . 2 . . . . 1 . . . . 1 . . 1 Weapon 1 | . . . . 1 . . . . . . . . . . . . . . . . . . . . Parts Attached 298 | 7 10 5 12 7 24 10 16 3 14 3 12 6 2 1 6 22 7 10 6 28 20 20 3 44 Power 42 | 1 3 1 2 1 3 . 1 . 1 . . . . 1 . 5 2 2 . 8 2 2 . 7 Engine 12 | 1 3 1 1 1 1 . 1 . . . . . . 1 . . 1 . . . . . . 1 Core 12 | . . . 1 . 2 . . . . . . . . . . 5 1 . . 3 . . . . Reactor 18 | . . . . . . . . . 1 . . . . . . . . 2 . 5 2 2 . 6 Propulsion 74 | 2 . 2 2 4 12 5 6 2 4 . . 2 1 . 1 2 . 3 . 7 3 3 1 12 Treads 23 | 2 . 2 2 4 9 . 2 1 . . . . . . . . . 1 . . . . . . Leg 46 | . . . . . 3 . 4 1 4 . . 2 1 . 1 2 . 2 . 7 3 3 1 12 Wheel . | . . . . . . . . . . . . . . . . . . . . . . . . . Hover . | . . . . . . . . . . . . . . . . . . . . . . . . . Flight 5 | . . . . . . 5 . . . . . . . . . . . . . . . . . . Utility 111 | 2 4 1 3 . 3 2 4 . 6 2 8 2 1 . 2 11 4 3 4 12 12 6 2 17 Device 66 | 2 3 1 2 . 2 . 2 . 1 1 5 1 . . 1 5 2 1 3 8 5 6 . 15 Storage 8 | . 1 . 1 . . . 1 . 1 . . . . . . . . . . 3 . . . 1 Processor 12 | . . . . . . . 1 . 2 . 1 1 . . . 1 . . 1 . 4 . . 1 Hackware 10 | . . . . . 1 1 . . . . 2 . . . . 2 . . . 1 2 . 1 . Protection 15 | . . . . . . 1 . . 2 1 . . 1 . 1 3 2 2 . . 1 . 1 . Artifact . | . . . . . . . . . . . . . . . . . . . . . . . . . Weapon 71 | 2 3 1 5 2 6 3 5 1 3 1 4 2 . . 3 4 1 2 2 1 3 9 . 8 Energy Gun 14 | 1 2 . 2 . . 2 1 1 . . . . . . . 2 . . . . . . . 3 Energy Cannon 21 | . . . 3 . 3 . . . 2 . 3 2 . . . 2 . . . . . 5 . 1 Ballistic Gun 16 | 1 1 . . . 1 . 2 . 1 . . . . . 2 . . 2 2 . 2 1 . 1 Ballistic Cannon 4 | . . . . . 1 1 . . . . . . . . . . 1 . . . . . . 1 Launcher 9 | . . . . 1 . . . . . 1 . . . . 1 . . . . . 1 3 . 2 Special Weapon 3 | . . . . . . . 1 . . . 1 . . . . . . . . 1 . . . . Impact Weapon 2 | . . 1 . . 1 . . . . . . . . . . . . . . . . . . . Slashing Weapon 1 | . . . . 1 . . . . . . . . . . . . . . . . . . . . Piercing Weapon 1 | . . . . . . . 1 . . . . . . . . . . . . . . . . . Special Melee Weapon . | . . . . . . . . . . . . . . . . . . . . . . . . . Unidentified Prototypes 38 | . . 1 . . . 1 . . 4 . 2 . . . 1 2 . 6 . 4 4 1 3 9 Corrupted Parts 9 | . . . . . . . . . . . . . . . . . . . 2 . . . . 7 System Corruption 52 | . . . . . . . . . . . . . . . . . . . 14 . . . . 38 Parts Lost 70 | . . 1 3 3 9 . 2 . 8 . . 1 . . 2 1 1 2 . 2 4 4 . 27 Power 10 | . . 1 . 1 . . 1 . . . . . . . . . . 1 . . . 1 . 5 Propulsion 22 | . . . 1 2 3 . 1 . 3 . . . . . . . . 1 . 1 . . . 10 Utility 20 | . . . 1 . 2 . . . 2 . . 1 . . . 1 1 . . 1 2 2 . 7 Weapon 18 | . . . 1 . 4 . . . 3 . . . . . 2 . . . . . 2 1 . 5 Highest Loss Streak 22 | . . 1 2 3 8 . 2 . 8 . . 1 . . 1 1 1 2 . 1 2 4 . 22 To Critical Strikes 1 | . . . . . 1 . . . . . . . . . . . . . . . . . . . Average Backups 16 | 1 9 14 21 21 12 5 8 13 12 13 13 13 13 14 14 14 14 14 14 17 21 21 21 17 Power . | . 1 . 1 1 1 . . 1 . . . . . . . . . . 1 . 1 . . . Propulsion 1 | . 2 4 3 3 1 . . 1 . . . 1 1 1 1 . 1 1 1 1 . 1 . . Utility 8 | . 3 4 7 6 6 2 5 7 6 11 10 9 9 9 10 11 8 8 8 10 13 11 13 10 Weapon 4 | . 2 5 7 9 2 1 1 3 3 1 2 2 2 2 2 1 2 2 2 4 5 7 7 5 Tool/Special . | . . . . . . . . . . . . . . . . . . . . . . . . . Unused Backups 49 | . 2 . 5 2 4 2 . 1 3 . 2 . 1 1 . 2 . 3 . 5 5 4 1 6 Power 10 | . 1 . . . 2 . . . 1 . . . 1 1 . . . . . 2 . . . 2 Propulsion 2 | . . . . . . . . . . . . . . . . . . . . 1 . . . 1 Utility 25 | . 1 . 3 1 2 2 . 1 2 . 1 . . . . 2 . 2 . 1 4 . . 3 Weapon 12 | . . . 2 1 . . . . . . 1 . . . . . . 1 . 1 1 4 1 . Tool/Special . | . . . . . . . . . . . . . . . . . . . . . . . . . Average Slot Usage (%) 95 | . 98 100 99 97 95 94 91 100 95 96 95 99 100 100 99 91 94 94 92 98 99 90 71 88 Engine 3 | . 13 14 4 8 2 . 2 7 5 . . . . 2 6 2 4 . . . . . . . Core 3 | . . . 9 . 6 7 . . . . . . . . . 10 11 6 . 5 . . . . Reactor 3 | . . . . . . . . . 1 7 6 6 6 3 . . . 7 11 5 10 10 5 11 Treads 9 | . 27 28 27 34 30 1 4 15 8 . . . . . . . . . 5 . . . . . Leg 19 | . . . . . 4 . 11 23 28 38 31 33 33 33 33 26 27 27 17 26 31 26 25 22 Device 13 | . 18 14 14 17 10 7 5 7 7 8 6 11 13 13 13 6 15 16 15 18 12 14 10 20 Storage 7 | . 8 14 14 9 9 . 3 7 7 7 6 6 6 6 6 5 5 5 5 5 5 5 5 4 Processor 7 | . . . . . . . 5 7 7 7 10 11 13 13 13 14 11 11 11 9 17 13 5 4 Hackware 1 | . . . . . 5 14 6 . . . 11 2 . . . 4 . . . . 1 . 1 . Protection 3 | . . . . . . 6 7 7 7 5 2 6 6 6 6 7 5 5 4 4 4 5 7 5 Energy Gun 4 | . 14 24 8 . . 3 5 20 12 . . . . . . . . . . . . . . 5 Energy Cannon 8 | . . . 16 17 10 . . . . 7 12 20 20 20 10 10 7 3 . . . 5 5 7 Ballistic Gun 4 | . 12 . . . 6 . . . . . . . . . 8 . . 3 13 16 15 5 . . Peak Build Rating 187 | 9 14 18 19 29 29 39 55 59 80 83 103 102 92 90 91 114 112 121 123 147 159 165 149 187 Average Rating 87 | 7 9 14 17 27 25 35 42 58 61 81 95 94 89 89 85 105 109 113 117 124 154 158 135 171 On Entrance 76 | . 9 14 15 18 27 26 39 55 59 80 83 102 92 89 88 84 108 109 121 123 147 137 127 149 Avg Prop Armor Cover (%) 8 | . . . . . 8 . 9 12 7 2 . . . . . 2 1 . 11 10 3 . . 2 Naked Turns . | . . . . . . . . . . . . . . . . . . . . . . . . . Heaviest Build 184 | 11 34 34 102 105 105 23 48 49 57 64 74 80 79 78 76 98 104 104 77 154 155 174 147 184 Greatest Support 180 | 40 40 43 46 89 80 23 70 58 109 137 137 137 137 132 132 132 128 128 84 150 180 178 178 178 Greatest Overweight (x) 8 | . 8 . 2 1 1 . 2 . 1 . . . . . . . . . . 1 1 . . 1 Average Overweight (x) . | . . . 1 1 . . . . . . . . . . . . . . . . . . . . Largest Inventory Capacity 25 | 5 15 15 25 25 25 15 15 15 15 15 15 15 15 15 15 15 15 15 15 25 25 25 25 25 Average Capacity 18 | 5 11 15 24 25 15 5 10 15 15 15 15 15 15 15 15 15 15 15 15 20 25 25 25 21 Most Carried 25 | 4 15 15 25 25 22 15 15 15 15 15 15 15 15 15 15 15 15 15 15 25 25 25 25 25 Average Carried 17 | 1 9 14 22 22 13 5 10 14 13 14 14 14 14 14 15 14 14 14 14 19 24 24 24 20 Final Capacity 25 | 5 15 15 25 25 15 5 15 15 15 15 15 15 15 15 15 15 15 15 15 25 25 25 25 5 Final Carried 25 | 4 15 15 24 22 15 5 15 15 15 14 15 15 15 15 15 15 15 15 14 25 22 25 25 4 Class Distribution -------------------- 37% | Scavenger-Gunner 23% | Mutant 10% | Scavenger-Tank 9% | Scavenger-Mutant 9% | Scavenger-Skirmisher Dominant Class ---------------- Mutant | -10/Materials Mutant | -10/Mines Mutant | -10/Subcaves Scavenger-Mutant | -8/Materials Scavenger-Gunner | -8/Garrison Hacker-Sprinter | -7/Factory Scavenger-Mutant | -7/Lower Caves Scavenger-Tank | -7/Lower Caves Scavenger-Mutant | -7/Data Miner Scavenger-Mutant | -6/Proximity Caves Scavenger-Skirmisher | -6/Factory Scavenger-Gunner | -6/Lower Caves Scavenger-Gunner | -6/Lower Caves Scavenger-Gunner | -6/Zion Scavenger-Gunner | -5/Proximity Caves Scavenger-Tank | -5/Factory Scavenger-Gunner | -5/Extension Scavenger-Gunner | -5/Cetus Scavenger-Gunner | -5/Archives Scavenger-Gunner | -5/Hub_04(d) Scavenger-Skirmisher | -4/Factory Scavenger-Gunner | -4/Armory Scavenger-Mutant | -4/Lab Scavenger-Tank | -3/Research Resources | -11 -10 -10 -10 -8 -8 -7 -7 -7 -7 -6 -6 -6 -6 -6 -5 -5 -5 -5 -5 -5 -4 -4 -4 -3 ----------- Run | Yrd Mat Min Sub Mat Gar Fac Low Low Dat Pro Fac Low Low Zio Pro Fac Ext Cet Arc Hub Fac Arm Lab Res Matter Collected 13370 | 303 529 20 210 280 962 151 175 98 198 136 157 304 40 10 292 576 293 478 456 1704 1678 1840 . 2480 Remotely . | . . . . . . . . . . . . . . . . . . . . . . . . . Salvage Created 27852 | 165 604 235 547 332 795 52 442 172 456 87 220 434 57 . 583 2089 1315 280 310 2992 2403 3014 . 10268 Parts 1273 | 17 44 14 25 20 51 1 30 6 22 13 13 12 4 . 13 96 51 24 28 153 106 104 . 426 Haulers Intercepted 11 | . 2 . . . . 1 . . . . . . . . . 1 1 . . 2 2 . . 2 Recyclers Shooed 6 | . . . . . . . . . . . . . . . . 3 1 . . . 1 . . 1 Parts Field Recycled . | . . . . . . . . . . . . . . . . . . . . . . . . . Retrieved Matter . | . . . . . . . . . . . . . . . . . . . . . . . . . Parts Self-Destructed 61 | . . . 7 . . . 4 6 . 10 . 10 4 3 17 . . . . . . . . . Prevented 4 | . . . . . . . 4 . . . . . . . . . . . . . . . . . Parts Restored 1 | . . . . . . . . . . 1 . . . . . . . . . . . . . . Broken 1 | . . . . . . . . . . 1 . . . . . . . . . . . . . . Kills | -11 -10 -10 -10 -8 -8 -7 -7 -7 -7 -6 -6 -6 -6 -6 -5 -5 -5 -5 -5 -5 -4 -4 -4 -3 ------- Run | Yrd Mat Min Sub Mat Gar Fac Low Low Dat Pro Fac Low Low Zio Pro Fac Ext Cet Arc Hub Fac Arm Lab Res Combat Hostiles Destroyed 402 | . 19 11 15 11 26 . 1 7 4 8 6 7 1 . 14 28 14 3 . 35 26 42 . 124 Melee 2 | . . . . . . . . . 1 . . . . . . . . . . . . . . 1 Guns 128 | . 18 11 10 . 5 . . 6 2 . . . . . 2 . . . . 35 26 5 . 8 Cannons 109 | . . . 4 3 21 . 1 1 . 1 4 6 1 . 5 21 11 3 . . . 9 . 18 AOE 73 | . . . . 8 . . . . . 7 2 . . . 6 4 . . . . . 5 . 41 Classes Destroyed 29 | 2 5 . 3 3 3 . 1 . . 1 1 . . . . 2 1 . 1 2 . . . 4 Worker 17 | . 2 . . . . . . . . . 1 . . . . 1 1 . . 6 2 . . 4 Builder 9 | . . . . . . . . . . . 1 . . . . 1 . . . 3 2 . . 2 Tunneler 7 | 6 . . . . . . . . . . . . . . . . . . . . . . . 1 Hauler 11 | . 2 . . . . 1 . . . . . . . . . 1 1 . . 2 2 . . 2 Recycler 11 | 1 . . . . . . . . . . . . . . . 3 . . . 1 3 . . 3 Mechanic 5 | . . . . . . . . . . . . . . . . . . . . . . . . 5 Operator 9 | . . . . . . . . . . . . . . . . . . . 8 1 . . . . Drone 2 | . . . . . . . . . . 2 . . . . . . . . . . . . . . Watcher 9 | . 2 . . . . . . . . . . . . . . . 1 . . 1 2 3 . . Swarmer 54 | . 9 3 . . 11 . 1 7 . 3 3 . . . 2 3 . . . . 2 . . 10 Saboteur 12 | . . . . . . . . . . . . . . . . . . . . 1 1 4 . 6 Grunt 130 | . 10 8 . 4 7 . . . . . . 4 . . 9 6 8 . . 10 11 11 . 42 Brawler 13 | . . . . . 1 . . . . . . 1 . . 1 1 . . . 2 1 . . 6 Duelist 28 | . . . . . 1 . . . . . . . . . . 1 . . . . 2 10 . 14 Protector 9 | . . . . . . . . . . . . . . . . . . . . 1 . 4 . 4 Sentry 30 | . . . 1 2 5 . . . . . 1 . . . 1 3 5 . . 4 2 3 . 3 Demolisher 1 | . . . . . . . . . . . . . . . . . 1 . . . . . . . Specialist 4 | . . . . 2 . . . . . . . . . . . . . . . . . . . 2 Hunter 28 | . . . . 2 . . . . . 2 . 2 1 . 1 3 . . . 2 . 4 . 11 Programmer 55 | . . . . . 1 . . . . 1 2 . . . . 9 . . . 9 6 6 . 21 Heavy 4 | . . . . 1 . . . . . . . . . . . 1 . . . . . . . 2 Behemoth 2 | . . . . . . . . . . . . . . . . 1 . . . . 1 . . . Armor Guard 2 | . . . . . . . . . . . . . . . . . . . . . . 2 . . Cetus Guard 3 | . . . . . . . . . . . . . . . . . . 3 . . . . . . Enhanced Grunt 4 | . . . . . . . . . 4 . . . . . . . . . . . . . . . Lightning 6 | . . . . . . . . . . . . . . . . . . . . 6 . . . . Investigator 2 | . . . . . . . . . . . . . . . . . . . . . . . . 2 Striker 1 | . . . . . . . . . . . . . . . . . . . . . . . . 1 Executioner 2 | . . . . . . . . . . . . . . . . . . . . . . . . 2 Artisan 1 | . . . 1 . . . . . . . . . . . . . . . . . . . . . Subdweller 14 | . . . 14 . . . . . . . . . . . . . . . . . . . . . Thug 4 | . . . . . . . 4 . . . . . . . . . . . . . . . . . Butcher 1 | . . . . . . . . . . . . . . . . . 1 . . . . . . . Martyr 1 | . . . . . . . . . . . . . . . . . 1 . . . . . . . Guerrilla 1 | . . . . . . . 1 . . . . . . . . . . . . . . . . . Fireman 1 | . . . . . . . . . . . . . . . . 1 . . . . . . . . Mutant 1 | . . . . . . . 1 . . . . . . . . . . . . . . . . . Commander 1 | . . . . . . . 1 . . . . . . . . . . . . . . . . . Best Kill Streak 25 | 4 7 3 2 8 4 1 1 4 1 4 4 2 1 . 5 17 3 2 2 9 5 7 . 25 Combat Bots Only 22 | . 3 3 2 8 4 . 1 4 1 4 3 2 1 . 5 13 3 2 . 8 5 7 . 22 Max Kills in Single Turn 6 | 1 2 1 1 3 1 1 1 1 1 2 1 2 1 . 2 2 2 1 1 3 2 2 . 6 Gunslinging 1 | . 1 . . . . . . . . . . . . . . . . . . 1 . . . . Exploded 5 | . . . . 3 . . . . . 2 1 . . . 2 2 . . . . . 2 . 5 Melee 1 | . . . . . . . . . 1 . . . . . . . . . . . . . . 1 Uniques/NPCs Destroyed 2 | . . . . . . . . . 1 . . . . . . . . 1 . . . . . . Data Miner (-7/Data Miner) A7 (-5/Cetus) Combat | -11 -10 -10 -10 -8 -8 -7 -7 -7 -7 -6 -6 -6 -6 -6 -5 -5 -5 -5 -5 -5 -4 -4 -4 -3 -------- Run | Yrd Mat Min Sub Mat Gar Fac Low Low Dat Pro Fac Low Low Zio Pro Fac Ext Cet Arc Hub Fac Arm Lab Res Hostile Shots Fired 1990 | . 76 33 57 45 146 18 12 27 37 36 18 50 15 . 81 101 43 14 1 124 198 208 . 650 Missed 658 | . 16 16 15 19 40 8 6 10 5 11 7 7 8 . 26 29 14 7 . 36 70 81 . 227 Hits 1332 | . 60 17 42 26 106 10 6 17 32 25 11 43 7 . 55 72 29 7 1 88 128 127 . 423 Melee 44 | . . . . . 9 . . . . . . . . . . 2 . . . . 2 8 . 23 Projectile 1288 | . 60 17 42 26 97 10 6 17 32 25 11 43 7 . 55 70 29 7 1 88 126 119 . 400 AOE 4 | . . . . . . . . . . . . . . . . 1 . . . 1 . . . 2 Critical Strikes 79 | . . . 2 1 2 . . . . 2 . . 1 . 1 8 2 . . 11 10 9 . 30 Actively Blocked 17 | . . . . . . . . . . . . . . . . . . . . . . . . 17 Part Disruptions 9 | . . . . . . . . . . . . . . . . 1 . . . 1 4 . . 3 Damage Taken 24473 | . 557 234 868 693 1609 74 97 262 1412 332 181 740 133 . 678 1348 548 250 28 1469 2341 2730 . 7889 Core 2681 | . 48 46 131 32 216 9 15 32 94 79 16 92 19 . 30 179 . . . 68 128 196 . 1251 Absorbed by Shields 1703 | . . . . . . . . . . . . . . . . . 135 40 . . . 124 . 1404 Reduced by Siege Mode 16 | . . . . . . . . . . . . . . . . . . . . 16 . . . . Redirected to Shielding 208 | . . . . . . . . . . . . . . . . 150 58 . . . . . . . Ignored by Resistances 3531 | . . . . . . 7 . . 65 . . . . . . . 4 . . 933 571 252 . 1699 Regen/Repaired (Parts) 4217 | . 176 . . . . . . . . . 203 . . . . 400 . 153 55 499 1161 312 166 1092 Core Remaining (%) 65 | 100 . . 10 . 54 . . . . 67 . . . . 81 . . . . 75 . . 71 . Volleys Fired 1289 | 11 59 21 55 18 81 . 5 7 27 10 22 17 17 . 35 110 61 42 23 107 104 177 14 266 Largest 4 | 2 2 2 2 2 3 . 1 3 3 2 3 3 3 . 3 1 2 1 3 3 3 3 1 4 Hottest 416 | 70 130 130 160 160 160 . 40 170 170 129 270 270 270 . 270 81 121 51 121 105 105 240 120 416 Shots Fired 2288 | 22 118 42 98 24 159 . 5 21 62 12 27 45 25 . 65 110 63 42 59 297 261 261 14 456 Gun 1206 | 22 118 42 49 . 36 . . 18 62 . . . . . 16 . . . 43 297 261 125 . 117 Cannon 850 | . . . 49 12 122 . 5 3 . 3 23 45 25 . 38 104 56 20 3 . . 121 14 207 Launcher 190 | . . . . 12 1 . . . . 9 4 . . . 11 6 . . . . . 15 . 132 Special 42 | . . . . . . . . . . . . . . . . . 7 22 13 . . . . . Kinetic 955 | 11 53 . . 12 78 . 5 3 9 . . . . . 16 . 10 11 46 297 261 125 . 18 Thermal 1065 | 11 65 42 98 12 81 . . 18 53 3 23 45 25 . 38 100 53 31 13 . . 37 14 303 Explosive 51 | . . . . . . . . . . 9 4 . . . 11 6 . . . . . 8 . 13 Electromagnetic 217 | . . . . . . . . . . . . . . . . 4 . . . . . 91 . 122 Robot Hit Streak 32 | 7 12 13 19 6 9 . 4 3 11 4 3 9 4 . 7 15 7 8 17 32 23 19 . 16 Robot Miss Streak 9 | 2 8 6 3 2 5 . 2 2 3 1 1 2 . . 3 3 3 3 2 4 4 2 . 9 Penetration Max 2 | . . . . . . . . . . . . . . . . . 1 . 1 1 2 1 . 1 Secondary Targets 20 | . 3 3 . . . . . 1 1 . . . . . . . . . . 7 4 . . 1 Max Gunslinging Chain 1 | . 1 1 . . . . . 1 1 . . . . . . . . . . 1 1 . . 1 Capacitor 46 | . . . . . . . . . . . . . . . . . . . . . . 46 . . Shots Hit Robots 1346 | 15 77 41 76 14 87 1 15 10 57 5 7 32 3 . 37 67 39 31 44 183 174 141 . 190 Core Hits 1145 | 8 59 53 65 25 58 . 9 7 27 12 13 13 2 . 29 44 25 14 20 102 83 90 . 387 Critical Kills 44 | . . . 1 . . . . . . . . 1 . . 1 3 6 2 1 18 6 . . 5 Critical Parts Destroyed 45 | . . . . . . . . . . . . . . . 1 . . 3 3 24 9 3 . 2 Critical Strikes 119 | 1 2 . 1 . . . 1 2 5 . . 1 . . 2 3 6 6 5 43 17 14 . 10 Burn 13 | 1 2 . . . . . . 2 5 . . . . . . . . . . . . . . 3 Meltdown 12 | . . . 1 . . . . . . . . 1 . . 1 3 3 . . . . . . 3 Destroy 82 | . . . . . . . . . . . . . . . 1 . 3 6 5 43 17 3 . 4 Corrupt 11 | . . . . . . . . . . . . . . . . . . . . . . 11 . . Impale 1 | . . . . . . . 1 . . . . . . . . . . . . . . . . . Melee Attacks 133 | . . 52 13 . 1 3 14 . 39 . 11 . . . . . . . . . . . . . Impact 69 | . . 52 13 . . 3 1 . . . . . . . . . . . . . . . . . Slashing 1 | . . . . . 1 . . . . . . . . . . . . . . . . . . . Piercing 63 | . . . . . . . 13 . 39 . 11 . . . . . . . . . . . . . Sneak Attacks 18 | . . . . . . 1 13 . 1 . 3 . . . . . . . . . . . . . Combat Hostiles . | . . . . . . . . . . . . . . . . . . . . . . . . . Follow-up Attacks . | . . . . . . . . . . . . . . . . . . . . . . . . . Damage Inflicted 68405 | 208 1003 577 1543 1697 2130 132 844 213 1057 856 838 1182 99 . 2610 4745 1901 595 1111 6114 5894 8389 . 24667 Guns 19840 | 208 1000 577 729 . 279 . . 182 739 . . . . . 186 . . . 1025 6047 5548 1895 . 1425 Cannons 21170 | . . . 814 199 1760 . 60 31 . 86 391 1182 99 . 700 3689 1835 448 49 . . 3961 . 5866 Explosions 25027 | . . . . 1498 91 . . . . 770 281 . . . 1724 1032 . . . . 164 2533 . 16934 Melee 1400 | . . . . . . 132 784 . 318 . 166 . . . . . . . . . . . . . Ramming 738 | . 3 . . . . . . . . . . . . . . 24 20 . . 67 182 . . 442 Kinetic 18271 | 96 389 . . 1498 965 . 60 31 148 . . . . . 186 . 96 154 1074 6047 5548 1895 . 84 Thermal 23327 | 112 611 577 1543 199 1165 . . 182 591 86 391 1182 99 . 700 3580 1785 441 37 . . 876 . 9170 Explosive 8671 | . . . . . . . . . . 770 281 . . . 1724 1032 . . . . 67 1657 . 3140 Electromagnetic 15998 | . . . . . . . . . . . . . . . . 109 . . . . 97 3961 . 11831 Impact 132 | . . . . . . 132 . . . . . . . . . . . . . . . . . . Slashing . | . . . . . . . . . . . . . . . . . . . . . . . . . Piercing 1268 | . . . . . . . 784 . 318 . 166 . . . . . . . . . . . . . Highest Corruption 36 | . . . . . 15 . . . . . . . . . . 6 6 . 10 10 2 8 8 36 Average Corruption 7 | . . . . . 14 . . . . . . . . . . 1 5 . 6 6 1 1 8 9 Corruption Purged 22 | . . . . . . . . . . . . . . . . . 6 . 14 . 2 . . . Corruption Blocked . | . . . . . . . . . . . . . . . . . . . . . . . . . Effects 221 | . . . . . 56 . . . . . . . . . . 13 4 . 2 40 15 4 8 79 Message Errors 47 | . . . . . 7 . . . . . . . . . . 6 1 . . 10 6 . . 17 Matter Fused 50 | . . . . . 16 . . . . . . . . . . 1 1 . . 9 3 . 2 18 Heat Flow Errors 26 | . . . . . 9 . . . . . . . . . . 1 1 . 1 5 2 1 . 6 Energy Discharges 22 | . . . . . 5 . . . . . . . . . . 1 . . . 4 1 2 1 8 Parts Rejected 1 | . . . . . . . . . . . . . . . . . . . . 1 . . . . Data Loss (minor) 24 | . . . . . 6 . . . . . . . . . . 1 . . . 4 1 1 4 7 Data Loss (major) 15 | . . . . . 4 . . . . . . . . . . 1 . . 1 2 . . 1 6 Misfires 11 | . . . . . 3 . . . . . . . . . . 1 . . . 2 . . . 5 Alerts 3 | . . . . . . . . . . . . . . . . . . . . 1 1 . . 1 Misdirections 4 | . . . . . 1 . . . . . . . . . . . . . . . . . . 3 Weapon Failures 18 | . . . . . 5 . . . . . . . . . . 1 1 . . 2 1 . . 8 Overload Shots . | . . . . . . . . . . . . . . . . . . . . . . . . . Overflow Damage 1720 | . . . 6 87 14 112 . . 7 . 37 20 . . 92 285 5 . . . 122 123 . 810 Projectiles 1070 | . . . 6 5 14 . . . . . 23 20 . . 31 232 5 . . . . 94 . 640 Explosions 319 | . . . . 82 . . . . . . . . . . 61 53 . . . . . 29 . 94 Melee 331 | . . . . . . 112 . . 7 . 14 . . . . . . . . . 122 . . 76 Knockbacks 14 | . . . . . 9 . . . . . . . . . . . 1 . . 1 1 . . 2 Impact 5 | . . . . . . . . . . . . . . . . . 1 . . 1 1 . . 2 Kinetic 8 | . . . . . 8 . . . . . . . . . . . . . . . . . . . Secondary 1 | . . . . . 1 . . . . . . . . . . . . . . . . . . . Self-Inflicted Damage 1209 | . . . . 41 74 . . . . . . . . . 20 16 . . . . . 156 . 902 Shots 62 | . . . . 1 2 . . . . . . . . . 1 1 . . . . . 4 . 53 Rammed 3 | . 2 1 . . . . . . . . . . . . . . . . . . . . . . Targets Rammed 27 | . 2 1 . . . . . . . . . . . . . 2 1 . . 8 2 . . 11 Kicked 24 | . . . . . . . . . . . . . . . . 2 1 . . 8 2 . . 11 Crushed . | . . . . . . . . . . . . . . . . . . . . . . . . . Highest Temperature 407 | 27 219 165 249 117 339 5 1 6 12 . 266 288 384 . 140 264 318 225 222 339 311 354 24 407 Average Temperature 75 | 10 69 60 55 39 98 5 1 3 5 . 74 131 94 . 54 53 65 49 59 53 83 76 11 101 Received Heat Transfer 3683 | . 186 129 147 72 594 30 . . . . . 72 . . 114 147 124 9 . 78 767 482 . 732 Effects 4 | . . . . . . . . . . . . . 1 . . . . . . 1 . . . 2 Shutdowns 2 | . . . . . . . . . . . . . . . . . . . . 1 . . . 1 Energy Bleed 1 | . . . . . . . . . . . . . . . . . . . . . . . . 1 Damage (minor) 1 | . . . . . . . . . . . . . 1 . . . . . . . . . . . Siege Activations 3 | . . . . . . . . . . . . . . . . . . . . 3 . . . . Total Turns 79 | . . . . . . . . . . . . . . . . . . . . 79 . . . . Longest Duration 37 | . . . . . . . . . . . . . . . . . . . . 37 . . . . Martial Activations . | . . . . . . . . . . . . . . . . . . . . . . . . . Shielding Activations . | . . . . . . . . . . . . . . . . . . . . . . . . . Robots Disrupted 3 | . . . . . . . . . . . . . . . . . . . . . . . . 3 Combat Hostiles 2 | . . . . . . . . . . . . . . . . . . . . . . . . 2 Robots Corrupted 80 | . . . . . . 1 . . . . . . . . . . . . . . 1 25 . 53 Combat Hostiles 74 | . . . . . . . . . . . . . . . . . . . . . . 23 . 51 Parts Fried 181 | . . . . . . 1 . . . . . . . . . 2 1 . . . 4 59 . 114 Impact Corruptions 8 | . . . . . . 2 . . . . . . . . . . . . . . 3 . . 3 Robots Melted 17 | . 1 . 1 . . . . . 1 . . 1 . . 1 3 3 . . . . . . 6 Combat Hostiles 16 | . 1 . 1 . . . . . 1 . . 1 . . 1 3 3 . . . . . . 5 Parts Melted 68 | . 2 1 4 . . . . . 8 . . 5 . . . 6 11 . . 1 . 1 . 29 Heat Transferred 20824 | 407 1326 720 2030 259 1591 . . 481 1924 . 150 1438 124 . 907 . 76 500 175 . . 632 . 8084 Parts Sabotaged 6 | . . . . . . . . . . . . . . . . . . . . . . . . 6 Parts Stolen . | . . . . . . . . . . . . . . . . . . . . . . . . . Parts Stripped . | . . . . . . . . . . . . . . . . . . . . . . . . . Power Chain Reactions 19 | . . . . . . . . . . . . . . . . . . . . . . 2 . 17 Alert | -11 -10 -10 -10 -8 -8 -7 -7 -7 -7 -6 -6 -6 -6 -6 -5 -5 -5 -5 -5 -5 -4 -4 -4 -3 ------- Run | Yrd Mat Min Sub Mat Gar Fac Low Low Dat Pro Fac Low Low Zio Pro Fac Ext Cet Arc Hub Fac Arm Lab Res Maximum Alert Level 5 | . . . . 1 4 3 . . . . . . . . . 3 3 2 2 4 4 5 . 5 Low Security (%) 34 | 100 100 100 . 81 4 . . . . . 100 . . . . 45 . . . 28 . . . 13 Level 1 9 | . . . . 18 9 . . . . . . . . . . 33 . . 83 23 . . . 3 Level 2 16 | . . . . . 21 . . . . . . . . . . 6 75 100 16 25 18 6 . 7 Level 3 19 | . . . . . 36 100 . . . . . . . . . 14 24 . . 13 63 19 . 18 Level 4 13 | . . . . . 27 . . . . . . . . . . . . . . 9 17 51 . 26 Level 5 . | . . . . . . . . . . . . . . . . . . . . . . 8 . . High Security 6 | . . . . . . . . . . . . . . . . . . . . . . 14 . 30 Max Security . | . . . . . . . . . . . . . . . . . . . . . . . . . Sterilizations 1 | . . . . . . . . . . . . . . . . . . . . . . . . 1 Peak Influence 3284 | 15 192 140 . 313 1446 784 . . . . 158 . . . . 949 1026 688 430 1236 1400 2133 . 3284 Initial 758 | . 3 70 . . 193 758 . . . . 21 . . . . 140 463 567 248 98 596 667 . . Average 649 | 1 103 41 . 68 826 741 . . . . 25 . . . . 287 664 634 351 492 914 1356 . 1296 Influence Increases 16877 | 35 626 276 20 434 1343 136 155 160 20 175 301 175 30 . 522 1313 1155 331 255 1854 1443 2074 . 4044 Destroy 0b10 Robot/C 9300 | . 380 220 20 220 620 20 20 140 20 120 160 140 20 . 400 760 600 160 80 820 640 1140 . 2600 Destroy 0b10 Robot/NC 545 | 35 30 . . . . 5 . . . 10 10 . . . . 50 25 10 40 80 60 35 . 155 Destroy Leader 1550 | . 68 50 . 80 20 2 . 20 . 30 40 20 10 . 40 178 52 . . 186 148 190 . 416 Allied During Kill 1455 | . . . . . 65 1 . . . . 26 . . . 82 89 412 147 97 55 127 211 . 143 Successful Hack 249 | . 24 6 . 7 47 17 . . . . . . . . . 34 14 . . . 84 16 . . Select Force Hacks 60 | . 60 . . . . . . . . . . . . . . . . . . . . . . . Disable Machine 900 | . . . . 30 30 75 . . . . 15 . . . . 30 . . 30 315 180 90 . 105 Anti-Garrison Action 650 | . . . . . 450 . . . . . . . . . . . . . . 200 . . . . Destroy Structure 1498 | . 4 . . 67 96 16 . . . . 35 . . . . 172 52 14 8 168 174 272 . 420 Partial Spotted 45 | . . . . . 15 . . . . . . . . . . . . . . 15 . 15 . . Lose Combat Pursuer 525 | . 60 . . 30 . . 135 . . 15 15 15 . . . . . . . 15 30 105 . 105 Active Sensor Use 100 | . . . . . . . . . . . . . . . . . . . . . . . . 100 Influence Decreases 13827 | 30 451 456 20 137 194 798 557 424 138 141 268 239 33 . 298 591 1087 725 594 917 1299 1311 2125 994 Entered New Map 6439 | . 2 110 . . 104 688 291 74 118 . 13 26 2 . . 84 483 447 372 183 622 695 2125 . Time Decay 5958 | 30 449 336 20 107 . 70 246 350 20 141 195 213 31 . 198 437 474 198 222 634 577 506 . 504 Lost Part 580 | . . 10 . 30 90 . 20 . . . . . . . 20 10 10 20 . 20 40 40 . 270 Lost Ally 850 | . . . . . . 40 . . . . 60 . . . 80 60 120 60 . 80 60 70 . 220 Squads Dispatched 110 | . 3 . . 3 . 2 . . . . 3 . . . . 10 4 . . 9 9 16 . 51 Investigation 16 | . 3 . . . . 2 . . . . 1 . . . . 3 . . . 1 1 2 . 3 Extermination 18 | . . . . . . . . . . . 2 . . . . 3 . . . 4 2 2 . 5 Reinforcement 16 | . . . . 2 . . . . . . . . . . . 1 1 . . 3 3 3 . 3 Assault 52 | . . . . . . . . . . . . . . . . . 3 . . 1 3 9 . 36 Garrison 8 | . . . . 1 . . . . . . . . . . . 3 . . . . . . . 4 Intercept . | . . . . . . . . . . . . . . . . . . . . . . . . . Searches Triggered . | . . . . . . . . . . . . . . . . . . . . . . . . . Construction Impeded 2 | . . . . . . . . . . . . . . . . 1 . . . 1 . . . . Haulers Reinforced 1 | . . . . . . . . . . . . . . . . . . . . . . . . 1 Active Scanning Responses 1 | . . . . . . . . . . . . . . . . . . . . . . . . 1 Cargo Convoy Interrupts 1 | . . . . . . . . . . . . . . . . . . . . . . . . 1 Stealth | -11 -10 -10 -10 -8 -8 -7 -7 -7 -7 -6 -6 -6 -6 -6 -5 -5 -5 -5 -5 -5 -4 -4 -4 -3 --------- Run | Yrd Mat Min Sub Mat Gar Fac Low Low Dat Pro Fac Low Low Zio Pro Fac Ext Cet Arc Hub Fac Arm Lab Res Distress Signals 17 | . 2 . . . . . . . . . . . . . . 2 2 1 . 2 3 4 . 1 Communications Jammed 80 | . . . . . . . . . . . . . . . . . 4 . . 4 25 16 . 31 Distress Signals 62 | . . . . . . . . . . . . . . . . . 4 . . 4 13 16 . 25 Times Spotted 702 | . 29 10 15 14 31 4 11 10 5 8 11 9 3 . 20 45 39 10 14 57 53 87 . 217 Peak Tracking Total 27 | . 5 3 2 7 6 7 9 4 3 3 3 4 2 . 5 7 5 5 1 6 9 25 . 27 Tactical Retreats 27 | . 3 . . 2 . . 3 . 1 1 1 1 . . . . . . . 1 3 5 . 6 Traps | -11 -10 -10 -10 -8 -8 -7 -7 -7 -7 -6 -6 -6 -6 -6 -5 -5 -5 -5 -5 -5 -4 -4 -4 -3 ------- Run | Yrd Mat Min Sub Mat Gar Fac Low Low Dat Pro Fac Low Low Zio Pro Fac Ext Cet Arc Hub Fac Arm Lab Res Traps Triggered 22 | . 3 . . . 2 1 . . . . 1 . . . . 1 2 . . . 1 5 . 6 Indirectly 4 | . . . . . . . . . . . . . . . . . . . . . . 1 . 3 Trap Hack Attempts . | . . . . . . . . . . . . . . . . . . . . . . . . . Triggered . | . . . . . . . . . . . . . . . . . . . . . . . . . Disarmed . | . . . . . . . . . . . . . . . . . . . . . . . . . Reprogrammed . | . . . . . . . . . . . . . . . . . . . . . . . . . Reused . | . . . . . . . . . . . . . . . . . . . . . . . . . Traps Extracted . | . . . . . . . . . . . . . . . . . . . . . . . . . Installed 1 | . . . 1 . . . . . . . . . . . . . . . . . . . . . Triggered . | . . . . . . . . . . . . . . . . . . . . . . . . . Machines | -11 -10 -10 -10 -8 -8 -7 -7 -7 -7 -6 -6 -6 -6 -6 -5 -5 -5 -5 -5 -5 -4 -4 -4 -3 ---------- Run | Yrd Mat Min Sub Mat Gar Fac Low Low Dat Pro Fac Low Low Zio Pro Fac Ext Cet Arc Hub Fac Arm Lab Res Machines Disabled 73 | . . . 1 2 11 5 . . 1 . 1 . . . . 2 . . 2 21 12 6 2 7 Max in Single Turn 3 | . . . 1 1 2 . . . 1 . 1 . . . . . . . 1 2 3 1 1 2 Garrison Access 4 | . . . . . . . . . . . . . . . . 1 . . . 1 2 . . . Garrison Relay 5 | . . . . . 5 . . . . . . . . . . . . . . . . . . . Phase Generator 1 | . . . . . 1 . . . . . . . . . . . . . . . . . . . Network Hub 2 | . . . . . . . . . . . . . . . . . . . . 2 . . . . Energy Cycler 1 | . . . . . . . . . . . . . . . . . 1 . . . . . . . Machines Repaired . | . . . . . . . . . . . . . . . . . . . . . . . . . Machines Dismantled 1 | . . . . . . . . . . . . . . . . . . . . 1 . . . . Machines Sabotaged . | . . . . . . . . . . . . . . . . . . . . . . . . . Overloaded Fab Kills . | . . . . . . . . . . . . . . . . . . . . . . . . . Hacking | -11 -10 -10 -10 -8 -8 -7 -7 -7 -7 -6 -6 -6 -6 -6 -5 -5 -5 -5 -5 -5 -4 -4 -4 -3 --------- Run | Yrd Mat Min Sub Mat Gar Fac Low Low Dat Pro Fac Low Low Zio Pro Fac Ext Cet Arc Hub Fac Arm Lab Res Machines Accessed 63 | . 9 2 2 4 4 5 1 1 4 . 6 1 . . . 7 2 . . 2 6 4 . 3 Terminals 23 | . 6 1 . 2 4 4 . . . . 2 . . . . . 2 . . . . 2 . . Fabricators 6 | . . . . . . . . . . . 1 . . . . 2 . . . . 1 2 . . Repair Stations 7 | . 1 . . . . . . . . . 2 . . . . 1 . . . . 2 . . 1 Recycling Units 4 | . 2 . . . . . . . . . 1 . . . . 1 . . . . . . . . Scanalyzers 4 | . . . . 1 . 1 . . . . . . . . . 1 . . . . 1 . . . Garrison Access 9 | . . . . 1 . . . . . . . . . . . 2 . . . 2 2 . . 2 Total Hacks 213 | . 31 4 7 11 8 20 1 1 29 . 22 1 . . . 29 3 . . 7 27 7 . 5 Successful 138 | . 20 2 7 8 4 7 1 1 29 . 14 1 . . . 21 2 . . 1 14 5 . 1 Failed 74 | . 11 2 . 2 4 13 . . . . 8 . . . . 8 1 . . 6 13 2 . 4 Catastrophic 15 | . . . . 1 2 5 . . . . . . . . . 1 . . . 3 2 . . 1 Database Lockouts 1 | . . . . 1 . . . . . . . . . . . . . . . . . . . . Manual 171 | . 17 3 . 7 5 11 . . . . 4 . . . . 17 14 1 . 26 24 28 . 14 Terminals 72 | . 23 3 . 8 8 18 . . . . 7 . . . . . 3 . . . . 2 . . Fabricators 20 | . . . . . . . . . . . 3 . . . . 4 . . . . 8 5 . . Repair Stations 37 | . 4 . . . . . . . . . 10 . . . . 8 . . . . 13 . . 2 Recycling Units 10 | . 4 . . . . . . . . . 2 . . . . 4 . . . . . . . . Scanalyzers 18 | . . . . 2 . 2 . . . . . . . . . 11 . . . . 3 . . . Garrison Access 16 | . . . . 1 . . . . . . . . . . . 2 . . . 7 3 . . 3 Terminal Hacks 60 | . 5 2 7 1 3 4 1 1 29 . 3 1 . . . . 2 . . . . 1 . . Record 17 | . . . 6 . . . . . 11 . . . . . . . . . . . . . . . Part Schematic 9 | . . . . . . . . . 9 . . . . . . . . . . . . . . . Robot Schematic 6 | . . . . . . . . . 6 . . . . . . . . . . . . . . . Robot Analysis 3 | . 2 1 . . . . . . . . . . . . . . . . . . . . . . Prototype ID Bank 5 | . 1 . . 1 . . . . 3 . . . . . . . . . . . . . . . Open Door 8 | . . 1 . . 1 . 1 1 . . . 1 . . . . 2 . . . . 1 . . Branch Access Points 3 | . . . . . . 2 . . . . 1 . . . . . . . . . . . . . Emergency Access Points 1 | . . . . . 1 . . . . . . . . . . . . . . . . . . . Machine Index 1 | . . . . . . . . . . . 1 . . . . . . . . . . . . . Terminal Index 1 | . . . . . . 1 . . . . . . . . . . . . . . . . . . Locate Traps 2 | . 2 . . . . . . . . . . . . . . . . . . . . . . . Registered Prototypes 1 | . . . . . . . . . . . 1 . . . . . . . . . . . . . Zone Layout 1 | . . . . . . 1 . . . . . . . . . . . . . . . . . . Patrol Navigation 1 | . . . . . 1 . . . . . . . . . . . . . . . . . . . Proto ID Catalog 1 | . . . 1 . . . . . . . . . . . . . . . . . . . . . Fabricator Hacks 10 | . . . . . . . . . . . 2 . . . . 2 . . . . 2 4 . . Network Status 2 | . . . . . . . . . . . 1 . . . . . . . . . 1 . . . Load Schematic 3 | . . . . . . . . . . . . . . . . 1 . . . . . 2 . . Build 5 | . . . . . . . . . . . 1 . . . . 1 . . . . 1 2 . . Repair Station Hacks 23 | . 4 . . . . . . . . . 6 . . . . 6 . . . . 7 . . . Scan Component 12 | . 2 . . . . . . . . . 3 . . . . 3 . . . . 4 . . . Repair 11 | . 2 . . . . . . . . . 3 . . . . 3 . . . . 3 . . . Recycling Unit Hacks 3 | . 1 . . . . . . . . . 1 . . . . 1 . . . . . . . . Retrieve Components 3 | . 1 . . . . . . . . . 1 . . . . 1 . . . . . . . . Scanalyzer 13 | . . . . 1 . 1 . . . . . . . . . 10 . . . . 1 . . . Insert Component 2 | . . . . . . . . . . . . . . . . 2 . . . . . . . . Analyze 3 | . . . . . . . . . . . . . . . . 3 . . . . . . . . Retrieve Study 8 | . . . . 1 . 1 . . . . . . . . . 5 . . . . 1 . . . Garrison Access Hacks 4 | . . . . 1 . . . . . . . . . . . 1 . . . . 2 . . . Unlock Access 1 | . . . . 1 . . . . . . . . . . . . . . . . . . . . Seal Access 3 | . . . . . . . . . . . . . . . . 1 . . . . 2 . . . Unauthorized Hacks 25 | . 10 . . 5 1 2 . . . . 2 . . . . 1 . . . 1 2 . . 1 Terminals 16 | . 8 . . 5 1 2 . . . . . . . . . . . . . . . . . . Botnet 6 | . 2 . . 2 1 1 . . . . . . . . . . . . . . . . . . Operators 1 | . . . . 1 . . . . . . . . . . . . . . . . . . . . Skim 9 | . 6 . . 2 . 1 . . . . . . . . . . . . . . . . . . Fabricators 3 | . . . . . . . . . . . 1 . . . . 1 . . . . 1 . . . Haulers 3 | . . . . . . . . . . . 1 . . . . 1 . . . . 1 . . . Repair Stations 2 | . . . . . . . . . . . . . . . . . . . . . 1 . . 1 Patch 2 | . . . . . . . . . . . . . . . . . . . . . 1 . . 1 Recycling Units 3 | . 2 . . . . . . . . . 1 . . . . . . . . . . . . . Reject 1 | . . . . . . . . . . . 1 . . . . . . . . . . . . . Tunnel 2 | . 2 . . . . . . . . . . . . . . . . . . . . . . . Scanalyzers . | . . . . . . . . . . . . . . . . . . . . . . . . . Garrison Access 1 | . . . . . . . . . . . . . . . . . . . . 1 . . . . Jam 1 | . . . . . . . . . . . . . . . . . . . . 1 . . . . Data Cores Recovered 2 | . . . . . . . . . . . . . . . . . . . . 1 . . . 1 Used . | . . . . . . . . . . . . . . . . . . . . . . . . . Hacking Detections 43 | . 8 1 . 3 3 5 . . . . 5 . . . . 6 1 . . 2 4 3 . 2 Full Trace Events 4 | . . . . . . 1 . . . . . . . . . 1 . . . . . 2 . . Feedback Events . | . . . . . . . . . . . . . . . . . . . . . . . . . Feedback Blocked . | . . . . . . . . . . . . . . . . . . . . . . . . . Robot Schematics Acquired 6 | . . . . . . . . . 6 . . . . . . . . . . . . . . . Robots Built 2 | . . . . . . . . . . . 2 . . . . . . . . . . . . . Authchips . | . . . . . . . . . . . . . . . . . . . . . . . . . Time 134 | . . . . . . . . . . . 134 . . . . . . . . . . . . . Total Robot Build Rating 8 | . . . . . . . . . . . 8 . . . . . . . . . . . . . Part Schematics Acquired 39 | . . . . . . . . . 9 . . . . . . 13 . . . . 8 9 . . Parts Built 5 | . . . . . . . . . . . . . . . . 1 . . . . 2 2 . . Authchips . | . . . . . . . . . . . . . . . . . . . . . . . . . Time 476 | . . . . . . . . . . . . . . . . 84 . . . . 139 253 . . Total Part Build Rating 36 | . . . . . . . . . . . . . . . . 6 . . . . 18 12 . . Part Studies Acquired 8 | . . . . 1 . 1 . . . . . . . . . 5 . . . . 1 . . . Parts Repaired 11 | . 2 . . . . . . . . . 3 . . . . 3 . . . . 3 . . . Time 712 | . 52 . . . . . . . . . 222 . . . . 267 . . . . 171 . . . Parts Recycled . | . . . . . . . . . . . . . . . . . . . . . . . . . Recycled Matter . | . . . . . . . . . . . . . . . . . . . . . . . . . Retrieved Matter . | . . . . . . . . . . . . . . . . . . . . . . . . . Retrieved Components 14 | . 10 . . . . . . . . . 2 . . . . 2 . . . . . . . . Parts Scanalyzed 2 | . . . . . . . . . . . . . . . . 2 . . . . . . . . Part Schematics Acquired 1 | . . . . . . . . . . . . . . . . 1 . . . . . . . . Parts Damaged 1 | . . . . . . . . . . . . . . . . 1 . . . . . . . . Bothacking | -11 -10 -10 -10 -8 -8 -7 -7 -7 -7 -6 -6 -6 -6 -6 -5 -5 -5 -5 -5 -5 -4 -4 -4 -3 ------------ Run | Yrd Mat Min Sub Mat Gar Fac Low Low Dat Pro Fac Low Low Zio Pro Fac Ext Cet Arc Hub Fac Arm Lab Res Used RIF Installer . | . . . . . . . . . . . . . . . . . . . . . . . . . Robots Hacked . | . . . . . . . . . . . . . . . . . . . . . . . . . Non-combat . | . . . . . . . . . . . . . . . . . . . . . . . . . Combat . | . . . . . . . . . . . . . . . . . . . . . . . . . Robot Hacks Applied . | . . . . . . . . . . . . . . . . . . . . . . . . . Relay Couplers Released 24 | . . . . . 24 . . . . . . . . . . . . . . . . . . . Machine Destruction 20 | . . . . . 20 . . . . . . . . . . . . . . . . . . . Programmers 4 | . . . . . 4 . . . . . . . . . . . . . . . . . . . Fabnet Peak Effective % . | . . . . . . . . . . . . . . . . . . . . . . . . . Robots Rewired 21 | . . . . . 3 . . . . . . . . . . . 15 . . . . 3 . . Allies Hacked 1 | . . . . . . . . . . . . . . . . . . . . . . . . 1 Hacks Repelled 1 | . . . . . . . . . . . . . . . . . . . . . . . . 1 Allies | -11 -10 -10 -10 -8 -8 -7 -7 -7 -7 -6 -6 -6 -6 -6 -5 -5 -5 -5 -5 -5 -4 -4 -4 -3 -------- Run | Yrd Mat Min Sub Mat Gar Fac Low Low Dat Pro Fac Low Low Zio Pro Fac Ext Cet Arc Hub Fac Arm Lab Res Total Allies 66 | . . . . . 3 . . . . . 6 . . 4 . 6 21 5 . . 2 7 . 12 Largest Group 14 | . . . . . 3 3 . . . . 2 . . 4 4 4 14 12 11 11 4 4 . 7 Highest-Rated Group 681 | . . . . . 101 101 . . . . 74 . . 152 152 219 580 681 663 663 265 412 . 243 Highest-Rated Ally 159 | . . . . . 39 39 . . . . 37 . . 39 39 85 159 152 96 96 103 103 . 146 Zionite Dispatches 10 | . . . . . . . . . . . . . . . . 2 3 . . . 1 2 . 2 Heavy 4 | . . . . . . . . . . . . . . . . 1 . . . . 1 2 . . Recon 1 | . . . . . . . . . . . . . . . . . 1 . . . . . . . Fire 1 | . . . . . . . . . . . . . . . . 1 . . . . . . . . Hacker 1 | . . . . . . . . . . . . . . . . . . . . . . . . 1 Hero 1 | . . . . . . . . . . . . . . . . . . . . . . . . 1 Kinetic Resupply 1 | . . . . . . . . . . . . . . . . . 1 . . . . . . . Hacking Resupply 1 | . . . . . . . . . . . . . . . . . 1 . . . . . . . Initial Warlord ECA Mod 10 | . . . . . . 10 10 10 10 9 9 9 9 9 . . . . . . . . . . Total Orders 17 | . . . . . 2 . . . . . 3 . . . . 1 1 . 1 3 5 1 . . STAY 3 | . . . . . 1 . . . . . . . . . . . . . 1 1 . . . . FOLLOW 5 | . . . . . 1 . . . . . . . . . . . . . . 2 2 . . . EXPLORE 3 | . . . . . . . . . . . 1 . . . . . . . . . 2 . . . RETURN 6 | . . . . . . . . . . . 2 . . . . 1 1 . . . 1 1 . . Ally Attacks 551 | . . . . . 20 4 . . . . 31 . . . 24 31 122 49 20 53 27 59 . 111 Total Damage 16681 | . . . . . 283 84 . . . . 258 . . . 438 1373 2680 1010 585 1617 1054 3641 . 3658 Kills 118 | . . . . . 5 2 . . . . 2 . . . 6 16 19 7 4 10 8 20 . 19 Allies Corrupted 4 | . . . . . . 1 . . . . . . . . . . . . . 2 . 1 . . Allies Melted 1 | . . . . . . . . . . . . . . . . . . . . . 1 . . . Intel | -11 -10 -10 -10 -8 -8 -7 -7 -7 -7 -6 -6 -6 -6 -6 -5 -5 -5 -5 -5 -5 -4 -4 -4 -3 ------- Run | Yrd Mat Min Sub Mat Gar Fac Low Low Dat Pro Fac Low Low Zio Pro Fac Ext Cet Arc Hub Fac Arm Lab Res Active Infowar (turns) 24386 | 142 809 . 3947 423 320 . . . 81 435 1263 1050 1119 1097 942 1797 1200 406 468 2225 1760 1607 332 2963 Optics 18745 | . . . . . . . . . 81 435 1263 1050 1119 1097 942 1797 1200 406 468 2225 1760 1607 332 2963 Sensors 3144 | . . . . . . . . . . . 627 . . . . 557 . . . . 936 613 . 411 A.S.S. 134 | . . . . . . . . . . . . . . . . . . . . . . . . 134 IFF 4449 | . . . . . . . . . . . 422 655 1119 1097 671 485 . . . . . . . . Terrain 458 | 128 330 . . . . . . . . . . . . . . . . . . . . . . . Seismic 6457 | 142 809 . 3947 423 320 . . . . . . . . . . . . . . . . . . 816 Cloaking 787 | . . . . . . . . . . . . . . . . . . . . . . . . 787 Jamming 6593 | . . . . . . . . . . . . . . . . 309 1175 406 373 725 799 1393 . 1413 Robot Analysis Total 3 | . 2 1 . . . . . . . . . . . . . . . . . . . . . . Derelict Logs Recovered 12 | . . 3 2 . . . 1 . . 1 . 1 2 . 2 . . . . . . . . . Drone Launches 23 | . . . . . . . . . . . 9 . . . . 1 9 2 . . 1 1 . . Drone Recoveries 22 | . . . . . . . . . . . 9 . . . . 1 8 2 . . 1 1 . . Zionite Intel Received 17 | . . . . . . . . . . . . . . . . 2 . . . 5 4 5 . 1 Main Access 2 | . . . . . . . . . . . . . . . . . . . . 1 . 1 . . Branch Access 1 | . . . . . . . . . . . . . . . . 1 . . . . . . . . Emergency Access 2 | . . . . . . . . . . . . . . . . . . . . 1 1 . . . Guard Positions 1 | . . . . . . . . . . . . . . . . . . . . . . 1 . . Component Stockpiles 2 | . . . . . . . . . . . . . . . . . . . . . 1 1 . . Prototype Stockpiles 1 | . . . . . . . . . . . . . . . . . . . . . . 1 . . Prototype Schematics 3 | . . . . . . . . . . . . . . . . 1 . . . . 1 1 . . Unaware Analyses 1 | . . . . . . . . . . . . . . . . . . . . 1 . . . . Trap Installations 1 | . . . . . . . . . . . . . . . . . . . . 1 . . . . Active Terminals 2 | . . . . . . . . . . . . . . . . . . . . 1 . . . 1 Depthwide Sectors/0 1 | . . . . . . . . . . . . . . . . . . . . . 1 . . . Exploration | -11 -10 -10 -10 -8 -8 -7 -7 -7 -7 -6 -6 -6 -6 -6 -5 -5 -5 -5 -5 -5 -4 -4 -4 -3 ------------- Run | Yrd Mat Min Sub Mat Gar Fac Low Low Dat Pro Fac Low Low Zio Pro Fac Ext Cet Arc Hub Fac Arm Lab Res Turns Passed 29760 | 212 1326 1317 3977 423 1575 154 530 792 790 435 1263 1050 1119 1097 942 1797 1200 406 468 2225 1760 1607 332 2963 Spaces Moved 17178 | 106 629 589 1186 159 713 490 620 631 368 296 867 792 722 862 637 1224 636 206 271 1375 1167 930 186 1516 Core 66 | 4 1 . . . . . . . . . . . . . . . . . . . . . . 61 Treads 3281 | 102 628 589 1186 159 614 . 3 . . . . . . . . . . . . . . . . . Legs 12900 | . . . . . 99 . 176 631 368 296 867 792 722 862 637 1224 636 206 271 1375 1167 930 186 1455 Wheels . | . . . . . . . . . . . . . . . . . . . . . . . . . Hover . | . . . . . . . . . . . . . . . . . . . . . . . . . Flight 931 | . . . . . . 490 441 . . . . . . . . . . . . . . . . . Fastest Speed 25 | 50 160 160 160 215 160 25 25 120 120 120 120 120 120 120 120 116 116 117 120 100 100 105 114 50 Average Speed 131 | 155 160 160 306 218 164 25 56 120 120 120 120 120 120 120 120 118 116 117 120 122 101 112 114 117 Slowest Speed 450 | 160 450 160 320 245 250 25 240 120 190 120 120 120 120 120 120 120 117 120 120 170 182 118 114 192 Overloaded Moves . | . . . . . . . . . . . . . . . . . . . . . . . . . Propulsion Burnouts . | . . . . . . . . . . . . . . . . . . . . . . . . . Robots Hopped . | . . . . . . . . . . . . . . . . . . . . . . . . . Potential Cave-ins 7 | . . . . . . . . . . . . . . . . . . . . . 3 . . 4 Cave-ins Triggered . | . . . . . . . . . . . . . . . . . . . . . . . . . Teleports 1 | . . . . . . . . . . . . . . . . . . . . . . . . 1 Exploration Rate (%) 65 | 6 96 104 65 25 94 13 73 74 81 58 21 93 90 90 91 30 83 60 93 72 40 60 89 33 Regions Visited 24 Branch Regions 16 Pre-discovered Areas 17 | . 4 1 1 . . . 1 . 1 1 . . . 1 1 . . . . . 6 . . . Known Exits Taken 10 | . . 1 1 1 . 1 . . . . 1 . . . 1 1 . . . 1 1 . 1 . Unknown Exits Taken 13 | 1 1 . . . . . 1 1 1 1 . 1 1 1 . . 1 1 1 . . 1 . . Scrap Searched 31 | . . 1 12 . . . 2 3 . 3 . 2 3 3 2 . . . . . . . . . Spaces Dug 183 | . . 14 3 . . 2 1 . . 32 11 . 13 . 4 9 3 . . 5 18 7 . 61 Terrain Destroyed 1211 | . . 14 9 78 157 2 1 1 . 105 44 8 22 . 172 67 11 3 9 89 87 118 . 214 Melee 22 | . . 14 . . . 2 1 . . . 5 . . . . . . . . . . . . . Projectile 384 | . . . 9 5 . . . 1 . 1 10 8 22 . 17 29 11 3 9 89 50 36 . 84 AOE 802 | . . . . 73 157 . . . . 104 29 . . . 155 38 . . . . 37 79 . 130 Terrain Rammed . | . . . . . . . . . . . . . . . . . . . . . . . . . Walls Destroyed . | . . . . . . . . . . . . . . . . . . . . . . . . . Machines Disabled . | . . . . . . . . . . . . . . . . . . . . . . . . . Actions | -11 -10 -10 -10 -8 -8 -7 -7 -7 -7 -6 -6 -6 -6 -6 -5 -5 -5 -5 -5 -5 -4 -4 -4 -3 --------- Run | Yrd Mat Min Sub Mat Gar Fac Low Low Dat Pro Fac Low Low Zio Pro Fac Ext Cet Arc Hub Fac Arm Lab Res Total 22350 | 127 822 816 1404 210 972 521 776 649 603 362 1041 852 952 924 750 1490 1036 346 375 1733 1536 1344 291 2418 Wait 2336 | . 90 143 99 10 75 1 87 . 127 54 90 28 203 60 57 80 160 62 60 132 173 84 81 380 Move 17155 | 105 628 588 1185 159 711 489 619 630 367 295 866 791 721 861 636 1223 635 205 270 1375 1166 929 185 1516 Hop . | . . . . . . . . . . . . . . . . . . . . . . . . . Pick Up 244 | 4 17 3 22 9 16 4 15 2 10 . 10 1 3 1 . 15 6 6 2 24 20 24 3 27 Fast Attach 142 | 7 8 . . 1 6 5 12 1 6 . 8 2 1 . 2 12 2 4 6 10 5 4 4 36 Attach 89 | . 1 1 3 7 8 7 2 . 6 1 3 1 . . . 4 1 1 . 5 5 9 1 23 Detach 49 | . . . . . 5 . 6 . 4 . 4 . . . . 2 1 3 2 5 3 2 . 12 Swap 343 | . 8 5 15 2 16 . 3 5 9 2 14 10 3 1 18 21 10 14 6 33 41 33 . 74 Drop 270 | . 9 2 11 4 22 12 13 4 8 . 12 2 4 1 2 21 6 9 6 32 17 22 3 48 Fire 1289 | 11 59 21 55 18 81 . 5 7 27 10 22 17 17 . 35 110 61 42 23 107 104 177 14 266 Melee 133 | . . 52 13 . 1 3 14 . 39 . 11 . . . . . . . . . . . . . Ram . | . . . . . . . . . . . . . . . . . . . . . . . . . Kick 23 | . . . . . . . . . . . . . . . . 2 1 . . 7 2 . . 11 Crush 3 | . 2 1 . . . . . . . . . . . . . . . . . . . . . . Escape Stasis 31 | . . . . . . . . . . . . . . . . . 6 . . . . . . 25 Rewire 238 | . . . . . 31 . . . . . . . . . . . 147 . . . . 60 . . Trap 1 | . . . 1 . . . . . . . . . . . . . . . . . . . . . Miscellaneous 4 | . . . . . . . . . . . 1 . . . . . . . . 3 . . . . Route ------- -11/Scrapyard -10/Materials (discovered 6 exits: *Mat x3 / *Min x2 / *Sub) -10/Mines (discovered 3 exits: *Mat x2 / *Sub) -10/Subcaves (discovered 3 exits: *Mat x2 / Rec) -8/Materials (discovered 2 exits: *Fac / Gar) -8/Garrison (discovered 3 exits: *Fac x3) -7/Factory (discovered 3 exits: Sto / *Low x2) -7/Lower Caves -7/Lower Caves (discovered 2 exits: *Fac / *Dat) -7/Data Miner -6/Proximity Caves -6/Factory (discovered 4 exits: Fac x2 / *Low x2) -6/Lower Caves -6/Lower Caves (discovered 2 exits: *Fac / [*Zio]) -6/Zion -5/Proximity Caves -5/Factory (discovered 8 exits: *Fac x4 / Upp x2 / *Ext x2) -5/Extension (discovered 2 exits: *Fac / *Cet) -5/Cetus (discovered 2 exits: *Fac / [*Arc]) -5/Archives (discovered 3 exits: *Fac / *Hub x2) -5/Hub_04(d) (discovered 4 exits: *Fac x4) -4/Factory (discovered 4 exits: *Res x3 / *Arm) -4/Armory (discovered 3 exits: *Res x2 / [*Lab]) -4/Lab -3/Research History --------- Turn | Location | Event 10 | -11/Scrapyard | Discovered new exit (range 15) 213 | -11/Scrapyard | Entered Materials 213 | -10/Materials | Discovered new exit (range 15) 309 | -10/Materials | Build established: Mutant 761 | -10/Materials | Discovered new exit (range 16) 814 | -10/Materials | Repaired Lgt. Treads 841 | -10/Materials | Repaired Assault Rifle 933 | -10/Materials | Discovered new exit (range 8) 1155 | -10/Materials | Discovered new exit (range 16) 1176 | -10/Materials | Learned Storage trap positions 1211 | -10/Materials | Learned 4 Subcaves zone layouts 1238 | -10/Materials | Learned location of 2 exits from Subcaves 1254 | -10/Materials | Learned 2 Storage zone layouts 1260 | -10/Materials | Identified exit to Subcaves 1261 | -10/Materials | Learned location of Storage (-7) 1262 | -10/Materials | Learned location of 2 exits from Subcaves 1263 | -10/Materials | Learned 4 Subcaves zone layouts 1267 | -10/Materials | Discovered new exit (range 7) 1539 | -10/Materials | Entered Mines 1993 | -10/Mines | Identified exit to Materials 2019 | -10/Mines | Learned Materials machine intel 2126 | -10/Mines | Discovered exit to Materials (range 5) 2330 | -10/Mines | Found the Drone Emporium 2335 | -10/Mines | Found Prototype Device 2335 | -10/Mines | Identified Splice Drone Bay 2848 | -10/Mines | Discovered exit to Subcaves (range 6) 2856 | -10/Mines | Entered Subcaves 2857 | -10/Subcaves | Identified exit to Recycling 2858 | -10/Subcaves | Identified exit to Materials 3017 | -10/Subcaves | Visited 4L-MR0's lab 3038 | -10/Subcaves | Found Powered Cannon 3302 | -10/Subcaves | Learned Materials non-interactive machine intel 3392 | -10/Subcaves | Core integrity fell below 50% 3466 | -10/Subcaves | Visited Clippyterm 3475 | -10/Subcaves | Learned location of Deep Caves (-6) 3696 | -10/Subcaves | Ambushed by angry Subdweller bent on revenge 3914 | -10/Subcaves | Shifting Twisted Machinery released Sub. Laser 4017 | -10/Subcaves | Shifting Twisted Machinery released Spk. Treads 4933 | -10/Subcaves | Disturbed a concealed Subdweller 4934 | -10/Subcaves | Core integrity fell below 20% 6126 | -10/Subcaves | Shifting Twisted Machinery released Mak. Hammer 6131 | -10/Subcaves | Shifting Twisted Machinery released Sub. Shrapnel Launcher 6640 | -10/Subcaves | A swath of the cavern ceiling suddenly collapsed 6833 | -10/Subcaves | Entered Materials 6833 | -8/Materials | Evolved 4 slots: Propulsion x2, Utility x1, Weapon x1 6834 | -8/Materials | Loaded intel: 58 machine locations 6835 | -8/Materials | Loaded intel: 39 non-interactive machine locations 6847 | -8/Materials | Central database locked down 7125 | -8/Materials | Build established: Scavenger-Mutant 7165 | -8/Materials | Garrison activated, responded to threat 7202 | -8/Materials | Lost 3 parts (1p2n) 7206 | -8/Materials | Destroyed 8 combat bots 7208 | -8/Materials | Discovered new exit (range 15) 7256 | -8/Materials | Identified exit to Garrison 7256 | -8/Materials | Entered Garrison 7288 | -8/Garrison | Triggered checkpoint 7331 | -8/Garrison | Garrison Relay disabled 7408 | -8/Garrison | Phase Generator disabled 7462 | -8/Garrison | Triggered checkpoint 7579 | -8/Garrison | System corruption reached 10% 7618 | -8/Garrison | Lost 8 parts (3n2u3w) 7760 | -8/Garrison | Garrison Relay disabled 7770 | -8/Garrison | Triggered checkpoint 7817 | -8/Garrison | Discovered new exit (range 11) 8072 | -8/Garrison | Triggered checkpoint 8088 | -8/Garrison | Triggered checkpoint 8228 | -8/Garrison | Discovered new exit (range 15) 8346 | -8/Garrison | Triggered checkpoint 8394 | -8/Garrison | Garrison Relay disabled 8408 | -8/Garrison | Build established: Scavenger-Gunner 8505 | -8/Garrison | Discovered new exit (range 10) 8539 | -8/Garrison | Garrison Relay disabled 8560 | -8/Garrison | Triggered checkpoint 8610 | -8/Garrison | Garrison Relay disabled 8712 | -8/Garrison | Attempted to access garrison exit controls, blocked by remote lockdown 8831 | -8/Garrison | Entered Factory 8831 | -7/Factory | Accompanied by 3 allies 8831 | -7/Factory | Evolved 2 slots: Propulsion x1, Utility x1 8961 | -7/Factory | Identified exit to Storage 8961 | -7/Factory | Identified exit to Lower Caves 8985 | -7/Factory | Entered Lower Caves 9028 | -7/Lower Caves | Met a Warlord Commander 9029 | -7/Lower Caves | Learned location of Warlord (-4) 9030 | -7/Lower Caves | Warlord Commander delivered Encrypted Comm Array 9099 | -7/Lower Caves | Learned 8 Factory zone layouts 9112 | -7/Lower Caves | Discovered new exit (range 13) 9125 | -7/Lower Caves | Encountered a Warlord checkpoint 9202 | -7/Lower Caves | Entered an active Warlord outpost 9208 | -7/Lower Caves | Destroyed 7Z-VTK(g) 9264 | -7/Lower Caves | Murdered 3 allies 9349 | -7/Lower Caves | Murdered 4 allies 9515 | -7/Lower Caves | Entered another Lower Caves area 9565 | -7/Lower Caves | Discovered new exit (range 11) 9586 | -7/Lower Caves | Build established: Scavenger-Mutant 9718 | -7/Lower Caves | Entered a destroyed Warlord outpost 9744 | -7/Lower Caves | Encountered a Warlord checkpoint 9910 | -7/Lower Caves | Build established: Scavenger-Tank 10289 | -7/Lower Caves | Discovered new exit (range 7) 10303 | -7/Lower Caves | Ambushed by research squad 10307 | -7/Lower Caves | Entered Data Miner 10307 | -7/Data Miner | Discovered new exit (range 6) 10330 | -7/Data Miner | Met Data Miner 10362 | -7/Data Miner | Learned location of Section 7 (-2) 10362 | -7/Data Miner | Acquired the access code to Warlord's prototype stash 10374 | -7/Data Miner | Received God Mode back door access code from Data Miner 10402 | -7/Data Miner | Destroyed Data Miner 10407 | -7/Data Miner | Data Conduit disabled 10784 | -7/Data Miner | Lost 8 parts (3n2u3w) 10948 | -7/Data Miner | Found Prototype Device 10948 | -7/Data Miner | Identified Exp. Thermal Shield 10998 | -7/Data Miner | Found Prototype Hackware 11001 | -7/Data Miner | Found Prototype Hackware 11043 | -7/Data Miner | Build established: Scavenger-Mutant 11048 | -7/Data Miner | Found Prototype Hackware 11051 | -7/Data Miner | Found Prototype Hackware 11097 | -7/Data Miner | Entered Proximity Caves 11130 | -6/Proximity Caves | Spotted B-75 Beast 11302 | -6/Proximity Caves | Learned location of Zion (-6) 11490 | -6/Proximity Caves | Discovered new exit (range 11) 11532 | -6/Proximity Caves | Entered Factory 11532 | -6/Factory | Evolved 2 slots: Utility x2 11533 | -6/Factory | Identified exit to Factory 11640 | -6/Factory | Identified Deep Network Scanner 11645 | -6/Factory | Identified Ghost Barrier 11695 | -6/Factory | Repaired Enh. Flexi-carbon Leg 11830 | -6/Factory | Repaired Enh. Flexi-carbon Leg 11925 | -6/Factory | Repaired Enh. Flexi-carbon Leg 12169 | -6/Factory | Identified exit to Lower Caves 12395 | -6/Factory | Fabricated P-60 Hacker? 12568 | -6/Factory | Build established: Scavenger-Skirmisher 12795 | -6/Factory | Entered Lower Caves 12965 | -6/Lower Caves | Learned Factory garrison access intel 13283 | -6/Lower Caves | Build established: Scavenger-Gunner 13487 | -6/Lower Caves | Discovered new exit (range 16) 13845 | -6/Lower Caves | Entered another Lower Caves area 13847 | -6/Lower Caves | Found DCF Scrap (13 items) 13880 | -6/Lower Caves | Discovered exit to Factory (range 5) 13910 | -6/Lower Caves | Learned 12 Factory zone layouts 14375 | -6/Lower Caves | Entered a destroyed Warlord outpost 14720 | -6/Lower Caves | Learned Factory emergency access door positions 14761 | -6/Lower Caves | Lost 3 allies 14955 | -6/Lower Caves | Discovered new exit (range 8) 14964 | -6/Lower Caves | Entered Zion 15022 | -6/Zion | Given the Hacking Drone Bay 15040 | -6/Zion | Discovered new exit (range 12) 15066 | -6/Zion | Found Prototype Device 15457 | -6/Zion | Met Imprinter 15477 | -6/Zion | Imprinted 15480 | -6/Zion | Declared Zion's savior 15785 | -6/Zion | Received a hallucinogenic algorithm 16061 | -6/Zion | Entered Proximity Caves 16061 | -5/Proximity Caves | Accompanied by 4 allies 16063 | -5/Proximity Caves | Identified Hacking Drone Bay 16644 | -5/Proximity Caves | Attracted the attention of an 0b10 checkpoint 16936 | -5/Proximity Caves | Spotted B-75 Beast 17003 | -5/Proximity Caves | Entered Factory 17003 | -5/Factory | Evolved 2 slots: Power x1, Utility x1 17004 | -5/Factory | Identified exit to Factory 17006 | -5/Factory | Loaded intel: 4 garrison access locations 17157 | -5/Factory | Attached Powered Cannon, gained temporary slot: Power 17303 | -5/Factory | Retrieved Zion intel report: Branch Access 17303 | -5/Factory | Identified exit to Upper Caves 17303 | -5/Factory | Identified exit to Extension 17349 | -5/Factory | Spotted B-75 Beast 17395 | -5/Factory | Identified System Mapper 17396 | -5/Factory | Identified Quantum Router 17487 | -5/Factory | Repaired Enh. Flexi-carbon Leg 17578 | -5/Factory | Repaired Enh. Flexi-carbon Leg 17668 | -5/Factory | Repaired Enh. Flexi-carbon Leg 17689 | -5/Factory | Build established: Hacker-Skirmisher 17782 | -5/Factory | Retrieved Zion intel report: Prototype Schematics 17783 | -5/Factory | Zion Fire squad teleported in 17956 | -5/Factory | Zion Heavy squad teleported in 18028 | -5/Factory | Build established: Scavenger-Tank 18398 | -5/Factory | Terminal network hard line cut 18402 | -5/Factory | Build established: Scavenger-Skirmisher 18442 | -5/Factory | Garrison activated, responded to threat 18498 | -5/Factory | Destroyed B-75 Beast 18501 | -5/Factory | Fabricated Enh. Flexi-carbon Leg (x1) 18577 | -5/Factory | Destroyed 13 combat bots 18800 | -5/Factory | Entered Extension 18819 | -5/Extension | Build established: Scavenger-Gunner 18933 | -5/Extension | Rescued a captive Derelict 18935 | -5/Extension | Rescued a captive Derelict 18973 | -5/Extension | Zion Kinetic Resupply teleported in 19053 | -5/Extension | Rescued A7 19162 | -5/Extension | Zion Hacking Resupply teleported in 19184 | -5/Extension | Zion Recon squad teleported in 19400 | -5/Extension | First assault squad dispatched 19515 | -5/Extension | Warlord forces began an assault 19544 | -5/Extension | Spotted B-75 Beast 19558 | -5/Extension | Spotted B-75 Beast 19563 | -5/Extension | Build established: Commander-Gunner 19609 | -5/Extension | Lost 3 allies 19836 | -5/Extension | Zion dispatch access revoked 19893 | -5/Extension | Energy Cycler disabled 19897 | -5/Extension | Rescued a captive Derelict 19937 | -5/Extension | Discovered exit to Factory (range 10) 19939 | -5/Extension | Discovered new exit (range 6) 20000 | -5/Extension | Entered Cetus 20000 | -5/Cetus | Accompanied by 11 allies (A7) 20005 | -5/Cetus | Acquired a Cetus Manufacturing Module code from A7 20011 | -5/Cetus | Spotted Cetus Guard 20014 | -5/Cetus | Spotted Cetus Guard 20016 | -5/Cetus | Spotted Cetus Guard 20018 | -5/Cetus | Spotted Cetus Guard 20027 | -5/Cetus | Allies destroyed Cetus Guard 20038 | -5/Cetus | Allies destroyed Cetus Guard 20041 | -5/Cetus | Destroyed Cetus Guard 20048 | -5/Cetus | Allies destroyed Cetus Guard 20096 | -5/Cetus | Murdered A7 20097 | -5/Cetus | Extracted ID and sensor layout for unrecognized location from A7's data core 20100 | -5/Cetus | Found Prototype Protection 20100 | -5/Cetus | Identified Med. Regenerative Plating 20207 | -5/Cetus | Started Cetus Manufacturing Module 20214 | -5/Cetus | Discovered new exit (range 21) 20232 | -5/Cetus | Manufactured an Enhanced Grunt 20238 | -5/Cetus | Spotted Cetus Guard 20238 | -5/Cetus | Spotted Cetus Guard 20244 | -5/Cetus | Spotted Cetus Guard 20251 | -5/Cetus | Allies destroyed Cetus Guard 20252 | -5/Cetus | Destroyed Cetus Guard 20252 | -5/Cetus | Spotted Cetus Guard 20257 | -5/Cetus | Manufactured an Enhanced Grunt 20260 | -5/Cetus | Allies destroyed Cetus Guard 20261 | -5/Cetus | Destroyed Cetus Guard 20267 | -5/Cetus | Discovered exit to Factory (range 21) 20281 | -5/Cetus | Scared off Revision 17 20282 | -5/Cetus | Manufactured an Enhanced Grunt 20307 | -5/Cetus | Manufactured an Enhanced Grunt 20332 | -5/Cetus | Manufactured an Enhanced Grunt 20406 | -5/Cetus | Entered Archives 20406 | -5/Archives | Accompanied by 11 allies 20453 | -5/Archives | Discovered exit to Factory (range 16) 20472 | -5/Archives | Discovered new exit (range 14) 20556 | -5/Archives | Discovered new exit (range 13) 20673 | -5/Archives | System corruption reached 10% 20728 | -5/Archives | Build established: Scavenger-Gunner 20874 | -5/Archives | Entered Hub_04(d) 20874 | -5/Hub_04(d) | Accompanied by 11 allies 20906 | -5/Hub_04(d) | Discovered exit to Factory (range 9) 21059 | -5/Hub_04(d) | Discovered exit to Factory (range 10) 21188 | -5/Hub_04(d) | Retrieved Zion intel report: Active Terminals 21202 | -5/Hub_04(d) | Retrieved Zion intel report: Trap Installations 21507 | -5/Hub_04(d) | Retrieved Zion intel report: Emergency Access 21551 | -5/Hub_04(d) | Discovered exit to Factory (range 16) 21655 | -5/Hub_04(d) | Retrieved Zion intel report: Main Access 21683 | -5/Hub_04(d) | Retrieved Zion intel report: Unaware Analyses 21761 | -5/Hub_04(d) | Network Hub disabled 22074 | -5/Hub_04(d) | First assault squad dispatched 22140 | -5/Hub_04(d) | Spotted Lightning 22143 | -5/Hub_04(d) | Spotted Lightning 22145 | -5/Hub_04(d) | Spotted Lightning 22184 | -5/Hub_04(d) | Destroyed Lightning 22184 | -5/Hub_04(d) | Destroyed Lightning 22193 | -5/Hub_04(d) | Terminal network hard line cut 22210 | -5/Hub_04(d) | Destroyed Lightning 22264 | -5/Hub_04(d) | Found Prototype Energy Cannon 22266 | -5/Hub_04(d) | Found Prototype Device 22266 | -5/Hub_04(d) | Identified Exp. Phase Shifter 22269 | -5/Hub_04(d) | Found Prototype Device 22269 | -5/Hub_04(d) | Identified Exp. EM Shield 22306 | -5/Hub_04(d) | Found Exp. Phase Shifter 22309 | -5/Hub_04(d) | Found Prototype Energy Cannon 22390 | -5/Hub_04(d) | Network Hub disabled 22575 | -5/Hub_04(d) | Spotted Lightning 22608 | -5/Hub_04(d) | Spotted Lightning 22609 | -5/Hub_04(d) | Spotted Lightning 22631 | -5/Hub_04(d) | Destroyed Lightning 22664 | -5/Hub_04(d) | Destroyed Lightning 22679 | -5/Hub_04(d) | Destroyed Lightning 22684 | -5/Hub_04(d) | Found Exp. EM Shield 22689 | -5/Hub_04(d) | Found Exp. EM Shield 22699 | -5/Hub_04(d) | Found Exp. Targeting Computer 22700 | -5/Hub_04(d) | Destroyed 8 combat bots 22800 | -5/Hub_04(d) | Found Exp. Targeting Computer 22827 | -5/Hub_04(d) | Found Exp. Phase Shifter 22941 | -5/Hub_04(d) | Destroyed 7 combat bots 23066 | -5/Hub_04(d) | Found Exp. EM Shield 23099 | -5/Hub_04(d) | Entered Factory 23099 | -4/Factory | Accompanied by 4 allies 23099 | -4/Factory | Evolved 2 slots: Propulsion x1, Utility x1 23271 | -4/Factory | Fabricated Quantum Reactor (x2) 23407 | -4/Factory | Spotted B-86 Titan 23456 | -4/Factory | Discovered new exit (range 7) 23461 | -4/Factory | Identified exit to Research 23463 | -4/Factory | Lost 3 allies 23611 | -4/Factory | Zion Heavy squad teleported in 23679 | -4/Factory | Retrieved Zion intel report: Emergency Access 23718 | -4/Factory | Retrieved Zion intel report: Prototype Schematics 23742 | -4/Factory | Found Launcher Loader 23837 | -4/Factory | Spotted B-86 Titan 23901 | -4/Factory | Destroyed B-86 Titan 23936 | -4/Factory | Found Prototype Protection 23936 | -4/Factory | Identified Zio. Weapon Casing 23971 | -4/Factory | Repaired Adv. KE Penetrator? 24011 | -4/Factory | Found Prototype Launcher 24012 | -4/Factory | Identified Com. Tesla Bomb Launcher 24032 | -4/Factory | Found Com. Tesla Bomb Launcher 24090 | -4/Factory | Repaired Broken Enh. Biometal Leg 24188 | -4/Factory | Discovered exit to Research (range 22) 24271 | -4/Factory | Retrieved Zion intel report: Depthwide Sectors/-4 24295 | -4/Factory | Retrieved Zion intel report: Component Stockpiles 24327 | -4/Factory | Found Quantum Capacitor 24349 | -4/Factory | First assault squad dispatched 24403 | -4/Factory | Discovered exit to Research (range 8) 24428 | -4/Factory | Build established: Scavenger-Skirmisher 24502 | -4/Factory | Repaired Enh. Biometal Leg 24558 | -4/Factory | Terminal network hard line cut 24841 | -4/Factory | Assembled infested ambush trap array 24845 | -4/Factory | Discovered new exit (range 11) 24858 | -4/Factory | Identified exit to Armory 24859 | -4/Factory | Entered Armory 24919 | -4/Armory | Zion Heavy squad teleported in 24935 | -4/Armory | Zion Heavy squad teleported in 25029 | -4/Armory | Found Fusion Bomb Launcher 25033 | -4/Armory | Found Gamma Bomb Array 25035 | -4/Armory | Found Gamma Bomb Array 25123 | -4/Armory | Retrieved Zion intel report: Prototype Schematics 25232 | -4/Armory | Build established: Scavenger-Gunner 25317 | -4/Armory | Fabricated Mni. Smartbomb Launcher? 25412 | -4/Armory | Identified EMDS (x2) 25522 | -4/Armory | Retrieved Zion intel report: Prototype Stockpiles 25531 | -4/Armory | Spotted B-86 Titan 25672 | -4/Armory | Retrieved Zion intel report: Main Access 25843 | -4/Armory | Fabricated Prc. Matter Filter? 25937 | -4/Armory | Retrieved Zion intel report: Component Stockpiles 25960 | -4/Armory | Destroyed Armor Guard 25983 | -4/Armory | Destroyed Armor Guard 25996 | -4/Armory | Found Corrupted Prototype Device 26022 | -4/Armory | Retrieved Zion intel report: Guard Positions 26109 | -4/Armory | First assault squad dispatched 26232 | -4/Armory | High security lockdown imminent 26312 | -4/Armory | High security lockdown engaged 26327 | -4/Armory | Discovered new exit (range 4) 26461 | -4/Armory | Destroyed 7 combat bots 26466 | -4/Armory | Entered Lab 26466 | -4/Lab | Discovered exit to Research (range 9) 26479 | -4/Lab | Hidden lab's door opened automatically 26479 | -4/Lab | Sensor layout match revealed 26480 | -4/Lab | Gained access to the hidden lab's interior 26494 | -4/Lab | Lost 4 parts (1p2u1w) 26607 | -4/Lab | Found Prototype Protection 26607 | -4/Lab | Identified Exp. Powered Armor 26611 | -4/Lab | Found Prototype Energy Cannon 26682 | -4/Lab | Found Alien Artifact 26695 | -4/Lab | Found Alien Artifact 26695 | -4/Lab | Identified Integrated Mediator 26695 | -4/Lab | Installed Integrated Mediator, increased core attachment efficiency 26708 | -4/Lab | Found Alien Artifact 26708 | -4/Lab | Identified Core Expander 26708 | -4/Lab | Installed Core Expander, added new Weapon slot 26729 | -4/Lab | Build established: Scavenger-Mutant 26729 | -4/Lab | Found Quantum Router 26776 | -4/Lab | Found Alien Artifact 26798 | -4/Lab | Entered Research 26798 | -3/Research | Evolved 2 slots: Power x1, Utility x1 27030 | -3/Research | Zion hero teleported in (NK-0LA) 27220 | -3/Research | Build established: Hacker-Skirmisher 27368 | -3/Research | Found Prototype Device 27368 | -3/Research | Identified Active Sensor Suite 27482 | -3/Research | Garrison activated, responded to threat 27503 | -3/Research | Zion Hacker squad teleported in 27592 | -3/Research | Zion dispatch access revoked 27603 | -3/Research | Retrieved Zion intel report: Active Terminals 27796 | -3/Research | Build established: Scavenger-Gunner 27798 | -3/Research | First assault squad dispatched 27838 | -3/Research | Identified Exp. Weapon Cycler 28050 | -3/Research | Terminal network hard line cut 28076 | -3/Research | System corruption reached 10% 28242 | -3/Research | Build established: Scavenger-Tank 28348 | -3/Research | Found Exp. ECM Suite 28371 | -3/Research | Spotted B-86 Titan 28611 | -3/Research | Destroyed 9 combat bots 28860 | -3/Research | High security lockdown imminent 28940 | -3/Research | High security lockdown engaged 28996 | -3/Research | Identified Core Reset Matrix 28996 | -3/Research | Identified Transdimensional Reconstructor 28996 | -3/Research | Used Core Reset Matrix 29242 | -3/Research | Spotted Striker 29250 | -3/Research | Destroyed Striker 29283 | -3/Research | Destroyed 20 combat bots 29305 | -3/Research | Spotted Executioner 29307 | -3/Research | Spotted Investigator 29308 | -3/Research | Scanned by Researcher 29311 | -3/Research | Destroyed Investigator 29314 | -3/Research | Destroyed Executioner 29314 | -3/Research | Garrison activated, responded to threat 29338 | -3/Research | Warped through subspace 29348 | -3/Research | Destroyed 7 combat bots 29537 | -3/Research | Spotted Executioner 29545 | -3/Research | Destroyed Executioner 29659 | -3/Research | System corruption reached 30% 29682 | -3/Research | Spotted Investigator 29686 | -3/Research | Spotted Striker 29689 | -3/Research | Sterilization system engaged 29689 | -3/Research | Non-combat units ordered to evacuate 29696 | -3/Research | Destroyed Investigator 29713 | -3/Research | Destroyed 22 combat bots 29723 | -3/Research | Identified Potential Cannon 29726 | -3/Research | Core integrity fell below 50% 29732 | -3/Research | Emitted hypermatrix ping 29734 | -3/Research | Core integrity fell below 20% 29737 | -3/Research | Assembled emerged from beneath the floor 29743 | -3/Research | Cargo convoy interrupted 29750 | -3/Research | Spotted Striker 29761 | -3/Research | Destroyed by Striker with Compact Linear Accelerator Last Messages --------------- 29740_ The unstable cave ceiling collapses. 29740_ Slug penetrates Striker. 29740_ Slug penetrates H-77 Assassin. 29742_ Slug penetrates Striker. 29743_ Slug penetrates as-97308. 29743_ Slug penetrates H-77 Assassin. 29743_ Slug penetrates as-97308. 29743_ as-97308 suffers critical hit (Destroy). 29743_ as-97308 destroyed. 29743_ Slug penetrates H-77 Assassin. 29743_ H-77 Assassin suffers critical hit (Destroy). 29743_ H-77 Assassin destroyed. 29743_ Slug penetrates Earth. 29743_ as-68898 destroyed. 29745_ Triggered Blade Trap. 29745_ Massive razor-sharp blades shoot up from within the floor. 29745_ Graphene Brace severed. 29745_ Exp. Weapon Cycler severed. 29755_ System corrupted: Component data lost. 29759_ Detected hypermatrix ping. Map ----- +----------------------------------------------------+ | " ??????????????????????????????????????????????? | | " ? ????????????????????????????????????????????? | | #???????????????????????????????????????????? | | #???????????????????????????????????????????? | | "" #???????????????????????????????????????????? | | "" #???????????????????????????????????????????? | | "" #???????????????????????????????????????????? | | ????#???????????????????????????????????????????? | | ?????????????????????????????????????????????????? | | ####+##### ###??????????????????????????????????? | | ?????????????????????????????????? | | ?????????????????????????????????? | | ?????????????????????????????????? | | ?????????????????????????????????? | | ########??????#####+#????????????????????????????? | | ??????????????? #????????????????????????????? | | #######???????? #????????????????????????????? | | #????????? #????????????????????????????? | | #?????????"" #????????????????????????????? | | #??????????" #????????????????????????????? | | #??????????" #????????????????????????????? | | ## #??????????? #????????????????????????????? | | ?# %#??????????? #????????????????????????????? | | ?# #############+#######################??????? | | ?# K e ??? | | ?# @ % ??? | | ?# ??? | | ?# ??? | | ?####+######+#############+######+######## ##????? | | ?????????????????????????????????????????????????? | | ?????????????????????????????????????????????????? | | ?????????????????????????????????????????????????? | | ?????????????????????????????????????????????????? | | ?????????????????????????????????????????????????? | | ?????????????????????????????????????????????????? | | ?????????????????????????????????????????????????? | | ?????????????????????????????????????????????????? | | ?????????????????????????????????????????????????? | | ?????????????????????????????????????????????????? | | ?????????????????????????????????????????????????? | | ?????????????????????????????????????????????????? | | ?????????????????????????????????????????????????? | | ?????????????????????????????????????????????????? | | ?????????????????????????????????????????????????? | | | | | | | | | | | | | +----------------------------------------------------+ Best States ------------- Heat Dissipation 110 Coolant Potential 100 Energy Generation 59 Energy Capacity 1305 Matter Stores 300 Matter Capacity 300 Sight Range 22 Robot Scan Range 20 Terrain Scan Range 16 Terrain Scan Density 10 Jamming Range 16 Cloak Strength 4 Armor Coverage 625 Resistance: KI 25 Resistance: TH 30 Resistance: EM 75 Weapon Shielding 66 Weapon Cycling 30 Phase Shifting 20 Evasion (%) 86 Targeting Accuracy 24 Melee Accuracy 6 Core Analysis 6 Recoil Reduction 4 Matter Filtering 50 Salvage Targeting 3 Offensive Hacking 28 Defensive Hacking 25 Item Schematics ----------------- None Robot Schematics ------------------ None Fabricated ------------ P-60 Hacker | x2 | -6/Factory | Preloaded Enh. Flexi-carbon Leg | x1 | -5/Factory Quantum Reactor | x2 | -4/Factory | Preloaded Mni. Smartbomb Launcher | x1 | -4/Armory Prc. Matter Filter | x1 | -4/Armory Repaired ---------- Lgt. Treads | 22% | -10/Materials Assault Rifle | 32% | -10/Materials Enh. Flexi-carbon Leg | 53% | -6/Factory Enh. Flexi-carbon Leg | 65% | -6/Factory Enh. Flexi-carbon Leg | 67% | -6/Factory Enh. Flexi-carbon Leg | 14% | -5/Factory Enh. Flexi-carbon Leg | 17% | -5/Factory Enh. Flexi-carbon Leg | 45% | -5/Factory Adv. KE Penetrator | 19% | -4/Factory Enh. Biometal Leg | 35% | -4/Factory | Broken Enh. Biometal Leg | 50% | -4/Factory Studied --------- None Alien Tech Used ----------------- Integrated Mediator Core Expander Core Reset Matrix Transdimensional Reconstructor Achievements -------------- None Challenges ------------ None Game ------ Seed XenonShadeNanovents Manual? 0 Play Time 04:27:15 Cumulative 1032.0 hours Start 2025.11.12 @ 17:54:54 End 2025.11.15 @ 16:24:48 Sessions 3 Manual Loads 0 Difficulty Rogue Special Mode None Game No. 318 Rogue 316 Adventurer 2 Explorer 0 Win Type - Total 73 Types 20/18/16/1/1/1/12/1/1/2 Lore% 97 Gallery% 95 Achievement% 83 Wizard Run 0 Options --------- Layout 0 ASCII 0 Keyboard 1 Movement Numpad Keybinds 0 Fullscreen 1 Font 24/Smallcaps Map View 76x50 Zoom Use 0% Tactical HUD 1 Map Filters NONE Filters NONE Steam 1 RUN: fcedaa27-3a88-43d9-a398-894cc5aa45c9